[Event "*** SCC Grand Prix: Titled Tuesday Blitz"]
[Site "Chess.com"]
[Date "2020.07.14"]
[Round "7"]
[White "Cocaino74"]
[Black "Alexandercs432"]
[Result "1-0"]
[WhiteElo "2313"]
[BlackElo "2086"]
[TimeControl "180+1"]
[EndTime "11:19:51 PDT"]
[Termination "Cocaino74 won on time"]

1. e4 {[%clk 0:03:00.9]} 1... e5 {[%clk 0:02:59.5]} 2. Nf3 {[%clk 0:03:01.2]}
2... Nf6 {[%clk 0:02:59.9]} 3. Bc4 {[%clk 0:03:01.9]} 3... Nxe4 {[%clk
0:02:59.2]} 4. d4 {[%clk 0:02:59.5]} 4... d5 {[%clk 0:02:57.9]} 5. Bb5+ {[%clk
0:02:54.4]} 5... c6 {[%clk 0:02:56.5]} 6. Bd3 {[%clk 0:02:54.5]} 6... Nd7 {[%clk
0:02:28.9]} 7. dxe5 {[%clk 0:02:49]} 7... Be7 {[%clk 0:02:26.3]} 8. O-O {[%clk
0:02:44.1]} 8... O-O {[%clk 0:02:25.6]} 9. Re1 {[%clk 0:02:44.7]} 9... Ndc5
{[%clk 0:02:10.8]} 10. b4 {[%clk 0:02:44.7]} 10... Nxd3 {[%clk 0:02:10.5]} 11.
cxd3 {[%clk 0:02:45.6]} 11... Ng5 {[%clk 0:02:07.8]} 12. Nxg5 {[%clk 0:02:44.7]}
12... Bxg5 {[%clk 0:02:07]} 13. f4 {[%clk 0:02:45.3]} 13... Bh4 {[%clk
0:02:04.9]} 14. g3 {[%clk 0:02:45.8]} 14... Be7 {[%clk 0:02:03.3]} 15. a3 {[%clk
0:02:43.5]} 15... a5 {[%clk 0:02:01.6]} 16. bxa5 {[%clk 0:02:39.1]} 16... Qxa5
{[%clk 0:01:57.1]} 17. Be3 {[%clk 0:02:35.8]} 17... Bf5 {[%clk 0:01:45.8]} 18.
Bf2 {[%clk 0:02:10.5]} 18... Rfe8 {[%clk 0:01:33]} 19. g4 {[%clk 0:02:08.5]}
19... Bd7 {[%clk 0:01:24.9]} 20. Nd2 {[%clk 0:02:07.8]} 20... Bf8 {[%clk
0:01:23.1]} 21. Nb3 {[%clk 0:02:06]} 21... Qc7 {[%clk 0:01:20.9]} 22. a4 {[%clk
0:02:04.3]} 22... Qc8 {[%clk 0:01:13.7]} 23. h3 {[%clk 0:02:01.5]} 23... Qd8
{[%clk 0:01:12.2]} 24. a5 {[%clk 0:01:47.6]} 24... f6 {[%clk 0:01:09.9]} 25. d4
{[%clk 0:01:43.6]} 25... fxe5 {[%clk 0:01:06.7]} 26. dxe5 {[%clk 0:01:43.2]}
26... Rc8 {[%clk 0:00:50.7]} 27. Nc5 {[%clk 0:01:38.6]} 27... Qc7 {[%clk
0:00:39.4]} 28. Qb3 {[%clk 0:01:34.3]} 28... Rb8 {[%clk 0:00:35.7]} 29. Reb1
{[%clk 0:01:31]} 29... Kh8 {[%clk 0:00:32.3]} 30. Nxb7 {[%clk 0:01:29]} 30... h5
{[%clk 0:00:13.5]} 31. a6 {[%clk 0:01:23.9]} 31... hxg4 {[%clk 0:00:12.9]} 32.
hxg4 {[%clk 0:01:21.9]} 32... Bxg4 {[%clk 0:00:12.5]} 33. Kg2 {[%clk 0:01:22.5]}
33... Qf7 {[%clk 0:00:07.9]} 34. a7 {[%clk 0:01:18.3]} 34... Ra8 {[%clk
0:00:07.1]} 35. Rh1+ {[%clk 0:01:14]} 35... Kg8 {[%clk 0:00:06.8]} 36. Qc2
{[%clk 0:01:06.6]} 36... Bf5 {[%clk 0:00:06.3]} 37. Qxc6 {[%clk 0:01:07.1]}
37... Be4+ {[%clk 0:00:06.3]} 38. Kg1 {[%clk 0:01:06.6]} 38... Qg6+ {[%clk
0:00:06.2]} 39. Kf1 {[%clk 0:01:06.5]} 39... Qg2+ {[%clk 0:00:06.8]} 40. Ke2
{[%clk 0:01:05.7]} 40... Qf3+ {[%clk 0:00:06.7]} 41. Ke1 {[%clk 0:01:05.6]}
41... Bd3 {[%clk 0:00:06.5]} 42. Kd2 {[%clk 0:00:53.2]} 42... Qe2+ {[%clk
0:00:06.6]} 43. Kc3 {[%clk 0:00:53.7]} 43... Qc2+ {[%clk 0:00:06.3]} 44. Kd4
{[%clk 0:00:54.4]} 44... Qxc6 {[%clk 0:00:04.9]} 45. Kxd3 {[%clk 0:00:54.4]}
45... Qc4+ {[%clk 0:00:04.4]} 46. Kd2 {[%clk 0:00:54.6]} 46... Qb4+ {[%clk
0:00:03.5]} 47. Ke2 {[%clk 0:00:54.6]} 47... Qxb7 {[%clk 0:00:04.1]} 48. Rh3
{[%clk 0:00:54.7]} 48... Be7 {[%clk 0:00:01.5]} 49. Rah1 {[%clk 0:00:53.6]}
49... Bf8 {[%clk 0:00:01.7]} 50. e6 {[%clk 0:00:54.1]} 1-0

[Event "*** SCC Grand Prix: Titled Tuesday Blitz"]
[Site "Chess.com"]
[Date "2020.07.14"]
[Round "7"]
[White "velemajstor767276"]
[Black "Kolle05"]
[Result "1/2-1/2"]
[WhiteElo "2521"]
[BlackElo "2383"]
[TimeControl "180+1"]
[EndTime "11:19:52 PDT"]
[Termination "Game drawn by repetition"]

1. d4 {[%clk 0:03:00.9]} 1... Nf6 {[%clk 0:02:59.6]} 2. c4 {[%clk 0:03:00]} 2...
e6 {[%clk 0:02:59.6]} 3. Nf3 {[%clk 0:03:00]} 3... Bb4+ {[%clk 0:02:59.3]} 4.
Nbd2 {[%clk 0:02:58.8]} 4... O-O {[%clk 0:02:57.2]} 5. a3 {[%clk 0:02:59.1]}
5... Be7 {[%clk 0:02:54.3]} 6. e4 {[%clk 0:02:58.7]} 6... d6 {[%clk 0:02:46.3]}
7. e5 {[%clk 0:02:58.3]} 7... dxe5 {[%clk 0:02:44.9]} 8. dxe5 {[%clk 0:02:59.2]}
8... Nfd7 {[%clk 0:02:45]} 9. Ne4 {[%clk 0:02:57.2]} 9... Nc6 {[%clk 0:02:41]}
10. Bf4 {[%clk 0:02:57.3]} 10... a5 {[%clk 0:02:32.1]} 11. Qc2 {[%clk
0:02:55.1]} 11... h6 {[%clk 0:02:20.4]} 12. Rd1 {[%clk 0:02:53.1]} 12... Qe8
{[%clk 0:02:12.5]} 13. h4 {[%clk 0:02:52.2]} 13... f5 {[%clk 0:02:01.6]} 14. Nc3
{[%clk 0:02:45.2]} 14... Nc5 {[%clk 0:01:58.5]} 15. Nb5 {[%clk 0:02:40.5]} 15...
Bd8 {[%clk 0:01:53.6]} 16. h5 {[%clk 0:02:40]} 16... b6 {[%clk 0:01:44.3]} 17.
Be2 {[%clk 0:02:38.7]} 17... Bb7 {[%clk 0:01:42.8]} 18. Nh4 {[%clk 0:02:36.9]}
18... Bxh4 {[%clk 0:01:36.5]} 19. Rxh4 {[%clk 0:01:47.8]} 19... Qe7 {[%clk
0:01:32.4]} 20. Rh3 {[%clk 0:01:45.8]} 20... Rad8 {[%clk 0:01:13.9]} 21. Rg3
{[%clk 0:01:44.7]} 21... Kh7 {[%clk 0:01:10.5]} 22. Rg6 {[%clk 0:01:37.7]} 22...
Rxd1+ {[%clk 0:00:57.2]} 23. Bxd1 {[%clk 0:01:04.6]} 23... Rd8 {[%clk
0:00:51.6]} 24. Kf1 {[%clk 0:00:18]} 24... Qh4 {[%clk 0:00:37.2]} 25. g4 {[%clk
0:00:14.1]} 25... Qh1+ {[%clk 0:00:25.6]} 26. Ke2 {[%clk 0:00:13.8]} 26... Nxe5
{[%clk 0:00:17.2]} 27. Bxe5 {[%clk 0:00:05.7]} 27... Qf3+ {[%clk 0:00:12.7]} 28.
Ke1 {[%clk 0:00:05.9]} 28... Qh1+ {[%clk 0:00:08.1]} 29. Ke2 {[%clk 0:00:04.8]}
29... Qf3+ {[%clk 0:00:02.7]} 30. Ke1 {[%clk 0:00:04.7]} 30... Qh1+ {[%clk
0:00:02.5]} 31. Ke2 {[%clk 0:00:04.5]} 1/2-1/2

[Event "*** SCC Grand Prix: Titled Tuesday Blitz"]
[Site "Chess.com"]
[Date "2020.07.14"]
[Round "7"]
[White "guillembaches"]
[Black "Alindsay211"]
[Result "0-1"]
[WhiteElo "2401"]
[BlackElo "2306"]
[TimeControl "180+1"]
[EndTime "11:19:52 PDT"]
[Termination "Alindsay211 won on time"]

1. e4 {[%clk 0:03:00.9]} 1... c5 {[%clk 0:03:00]} 2. Nf3 {[%clk 0:03:01.1]} 2...
e6 {[%clk 0:03:00.2]} 3. g3 {[%clk 0:03:01.4]} 3... Nc6 {[%clk 0:02:59.8]} 4.
Bg2 {[%clk 0:03:01.6]} 4... Qc7 {[%clk 0:02:54.5]} 5. O-O {[%clk 0:03:01.3]}
5... Nf6 {[%clk 0:02:55.1]} 6. Qe2 {[%clk 0:03:01]} 6... d6 {[%clk 0:02:55.3]}
7. c3 {[%clk 0:02:59.6]} 7... Be7 {[%clk 0:02:52.2]} 8. d4 {[%clk 0:02:59]} 8...
O-O {[%clk 0:02:51.1]} 9. Bf4 {[%clk 0:02:48.9]} 9... e5 {[%clk 0:02:48.4]} 10.
dxe5 {[%clk 0:02:37.9]} 10... dxe5 {[%clk 0:02:48.6]} 11. Bg5 {[%clk 0:02:38.2]}
11... Be6 {[%clk 0:02:46.4]} 12. Nbd2 {[%clk 0:02:36.3]} 12... h6 {[%clk
0:02:40.2]} 13. Bxf6 {[%clk 0:02:32.9]} 13... Bxf6 {[%clk 0:02:41.1]} 14. Nc4
{[%clk 0:02:33]} 14... Rfd8 {[%clk 0:02:29.4]} 15. Rfd1 {[%clk 0:02:25.7]} 15...
Ne7 {[%clk 0:02:09]} 16. a4 {[%clk 0:02:14.4]} 16... b6 {[%clk 0:02:06.5]} 17.
Nfd2 {[%clk 0:02:04.3]} 17... Rab8 {[%clk 0:01:47.5]} 18. h4 {[%clk 0:02:03.5]}
18... Rd7 {[%clk 0:01:39.4]} 19. Kh2 {[%clk 0:01:59.3]} 19... Rbd8 {[%clk
0:01:38.8]} 20. Bh3 {[%clk 0:01:59.1]} 20... Bxh3 {[%clk 0:01:25.2]} 21. Kxh3
{[%clk 0:02:00]} 21... Rd3 {[%clk 0:01:25.4]} 22. Kg2 {[%clk 0:01:21]} 22... Qd7
{[%clk 0:01:23.2]} 23. Rac1 {[%clk 0:01:11.7]} 23... Ng6 {[%clk 0:00:46.7]} 24.
Kf1 {[%clk 0:00:46]} 24... Qh3+ {[%clk 0:00:42.1]} 25. Ke1 {[%clk 0:00:46.2]}
25... Bxh4 {[%clk 0:00:39.3]} 26. Nf1 {[%clk 0:00:37.8]} 26... Rxd1+ {[%clk
0:00:34.4]} 27. Rxd1 {[%clk 0:00:38.7]} 27... Rxd1+ {[%clk 0:00:34.8]} 28. Qxd1
{[%clk 0:00:38.7]} 28... Bf6 {[%clk 0:00:30.7]} 29. Qd5 {[%clk 0:00:33.2]} 29...
h5 {[%clk 0:00:27.7]} 30. Qa8+ {[%clk 0:00:31.5]} 30... Kh7 {[%clk 0:00:27.6]}
31. Qxa7 {[%clk 0:00:31.7]} 31... Qg4 {[%clk 0:00:23.4]} 32. Qxb6 {[%clk
0:00:26.1]} 32... Qxe4+ {[%clk 0:00:23.2]} 33. Nfe3 {[%clk 0:00:26.3]} 33... h4
{[%clk 0:00:23.2]} 34. gxh4 {[%clk 0:00:23.4]} 34... Nf4 {[%clk 0:00:23.6]} 35.
a5 {[%clk 0:00:15.4]} 35... Qd3 {[%clk 0:00:23.9]} 0-1

[Event "*** SCC Grand Prix: Titled Tuesday Blitz"]
[Site "Chess.com"]
[Date "2020.07.14"]
[Round "7"]
[White "GianmarcoVaR"]
[Black "tan275"]
[Result "1-0"]
[WhiteElo "2504"]
[BlackElo "2263"]
[TimeControl "180+1"]
[EndTime "11:19:52 PDT"]
[Termination "GianmarcoVaR won on time"]

1. d4 {[%clk 0:03:00.9]} 1... d5 {[%clk 0:02:59.2]} 2. c4 {[%clk 0:02:59.6]}
2... e6 {[%clk 0:02:59.5]} 3. Nf3 {[%clk 0:02:58.1]} 3... Nf6 {[%clk 0:02:59.8]}
4. g3 {[%clk 0:02:57.6]} 4... dxc4 {[%clk 0:02:58.7]} 5. Bg2 {[%clk 0:02:57.8]}
5... c5 {[%clk 0:02:59.2]} 6. O-O {[%clk 0:02:58.2]} 6... Nc6 {[%clk 0:02:59]}
7. Qa4 {[%clk 0:02:58.3]} 7... Bd7 {[%clk 0:02:53.4]} 8. Qxc4 {[%clk 0:02:49.7]}
8... b5 {[%clk 0:02:52.7]} 9. Qd3 {[%clk 0:02:48.4]} 9... c4 {[%clk 0:02:52]}
10. Qd1 {[%clk 0:02:47]} 10... Bd6 {[%clk 0:02:46.4]} 11. Nc3 {[%clk 0:02:36.1]}
11... Rb8 {[%clk 0:02:40.4]} 12. d5 {[%clk 0:02:34.4]} 12... exd5 {[%clk
0:02:33.8]} 13. Nxd5 {[%clk 0:02:33.1]} 13... O-O {[%clk 0:02:24.2]} 14. Bg5
{[%clk 0:02:14.6]} 14... Bf5 {[%clk 0:02:06.6]} 15. Nh4 {[%clk 0:02:08]} 15...
Bg6 {[%clk 0:01:59.5]} 16. Nxf6+ {[%clk 0:02:06.6]} 16... gxf6 {[%clk
0:01:57.1]} 17. Bh6 {[%clk 0:02:04.6]} 17... Nb4 {[%clk 0:01:43.3]} 18. Bxf8
{[%clk 0:01:57.4]} 18... Qxf8 {[%clk 0:01:44.2]} 19. e4 {[%clk 0:01:57.7]} 19...
Bc5 {[%clk 0:01:33.2]} 20. Qg4 {[%clk 0:01:43.4]} 20... Nd3 {[%clk 0:01:29.9]}
21. Rab1 {[%clk 0:01:41.6]} 21... Rd8 {[%clk 0:01:19.3]} 22. Nf5 {[%clk
0:01:31.8]} 22... b4 {[%clk 0:00:44.5]} 23. h4 {[%clk 0:01:12.1]} 23... h5
{[%clk 0:00:42.9]} 24. Qe2 {[%clk 0:01:12.2]} 24... Qe8 {[%clk 0:00:30]} 25. Bf3
{[%clk 0:01:07.9]} 25... Qb5 {[%clk 0:00:26.2]} 26. Bxh5 {[%clk 0:01:06.4]}
26... Qb6 {[%clk 0:00:20.9]} 27. Bxg6 {[%clk 0:00:50.4]} 27... fxg6 {[%clk
0:00:20.1]} 28. Nh6+ {[%clk 0:00:50.9]} 28... Kg7 {[%clk 0:00:19.7]} 29. Ng4
{[%clk 0:00:51.3]} 29... Qd6 {[%clk 0:00:16.6]} 30. Kg2 {[%clk 0:00:49.5]} 30...
c3 {[%clk 0:00:15]} 31. bxc3 {[%clk 0:00:48.7]} 31... bxc3 {[%clk 0:00:15.9]}
32. Rbd1 {[%clk 0:00:48.6]} 32... Qa6 {[%clk 0:00:11.3]} 33. Qf3 {[%clk
0:00:44.8]} 33... c2 {[%clk 0:00:09.8]} 34. Rxd3 {[%clk 0:00:37.8]} 34... Rxd3
{[%clk 0:00:08.9]} 35. Qe2 {[%clk 0:00:38.4]} 35... Ra3 {[%clk 0:00:06.4]} 36.
Qxc2 {[%clk 0:00:38]} 36... Qa5 {[%clk 0:00:05]} 37. Qb2 {[%clk 0:00:33.1]}
37... Qb6 {[%clk 0:00:04.9]} 38. Rb1 {[%clk 0:00:30.8]} 1-0

[Event "*** SCC Grand Prix: Titled Tuesday Blitz"]
[Site "Chess.com"]
[Date "2020.07.14"]
[Round "7"]
[White "platy3"]
[Black "kirillshevchenko"]
[Result "0-1"]
[WhiteElo "2767"]
[BlackElo "2936"]
[TimeControl "180+1"]
[EndTime "11:19:55 PDT"]
[Termination "kirillshevchenko won on time"]

1. e4 {[%clk 0:03:00.9]} 1... e5 {[%clk 0:02:59.3]} 2. Nf3 {[%clk 0:02:59.6]}
2... d6 {[%clk 0:02:59.7]} 3. d4 {[%clk 0:02:58.9]} 3... exd4 {[%clk 0:03:00.6]}
4. Nxd4 {[%clk 0:02:59.4]} 4... Nf6 {[%clk 0:03:01.1]} 5. Nc3 {[%clk 0:03:00]}
5... g6 {[%clk 0:03:01.5]} 6. g3 {[%clk 0:02:51.7]} 6... Bg7 {[%clk 0:03:00.9]}
7. Bg2 {[%clk 0:02:51.7]} 7... O-O {[%clk 0:03:01.4]} 8. O-O {[%clk 0:02:51.7]}
8... Re8 {[%clk 0:03:01]} 9. h3 {[%clk 0:02:50.8]} 9... Bd7 {[%clk 0:03:01.3]}
10. Be3 {[%clk 0:02:25.4]} 10... Nc6 {[%clk 0:02:54.9]} 11. Qd2 {[%clk
0:02:25.8]} 11... Ne5 {[%clk 0:02:29.5]} 12. Qe2 {[%clk 0:01:45.6]} 12... c5
{[%clk 0:02:15.2]} 13. Nb3 {[%clk 0:01:42.4]} 13... Be6 {[%clk 0:01:55.5]} 14.
Rfd1 {[%clk 0:01:38.5]} 14... Qe7 {[%clk 0:01:27]} 15. Nd2 {[%clk 0:01:32.2]}
15... Nc6 {[%clk 0:01:20.8]} 16. Nc4 {[%clk 0:01:23.4]} 16... Rad8 {[%clk
0:01:13.5]} 17. Nd5 {[%clk 0:01:23.4]} 17... Bxd5 {[%clk 0:01:10.1]} 18. exd5
{[%clk 0:01:24.3]} 18... Nd4 {[%clk 0:01:07.3]} 19. Qd3 {[%clk 0:01:22.9]} 19...
Nf5 {[%clk 0:01:06.9]} 20. Bf4 {[%clk 0:01:20.8]} 20... Nh5 {[%clk 0:01:01.2]}
21. Bd2 {[%clk 0:01:14.6]} 21... b5 {[%clk 0:00:42.7]} 22. Na5 {[%clk
0:01:13.9]} 22... c4 {[%clk 0:00:40.4]} 23. Qf1 {[%clk 0:01:07.2]} 23... Nd4
{[%clk 0:00:33.6]} 24. Nc6 {[%clk 0:00:45.4]} 24... Nxc6 {[%clk 0:00:30]} 25.
dxc6 {[%clk 0:00:46.3]} 25... Bxb2 {[%clk 0:00:28.6]} 26. Rab1 {[%clk
0:00:43.1]} 26... Bd4 {[%clk 0:00:29.2]} 27. Kh2 {[%clk 0:00:27.5]} 27... Qf6
{[%clk 0:00:24.1]} 28. Be1 {[%clk 0:00:21.9]} 28... a6 {[%clk 0:00:22.4]} 29. a4
{[%clk 0:00:19.1]} 29... Rxe1 {[%clk 0:00:11.3]} 30. Rxe1 {[%clk 0:00:09.6]}
30... Bxf2 {[%clk 0:00:11.8]} 31. Re2 {[%clk 0:00:06.7]} 31... Bxg3+ {[%clk
0:00:12]} 32. Kg1 {[%clk 0:00:05.7]} 32... Qd4+ {[%clk 0:00:11.7]} 33. Kh1
{[%clk 0:00:05.7]} 33... Be5 {[%clk 0:00:12.1]} 34. Qe1 {[%clk 0:00:01.9]} 34...
Ng3+ {[%clk 0:00:12.2]} 35. Qxg3 {[%clk 0:00:02.1]} 35... Bxg3 {[%clk
0:00:12.2]} 0-1

[Event "*** SCC Grand Prix: Titled Tuesday Blitz"]
[Site "Chess.com"]
[Date "2020.07.14"]
[Round "7"]
[White "rududuyk"]
[Black "Chessalary"]
[Result "1-0"]
[WhiteElo "2080"]
[BlackElo "2179"]
[TimeControl "180+1"]
[EndTime "11:19:55 PDT"]
[Termination "rududuyk won by checkmate"]

1. e4 {[%clk 0:03:00.9]} 1... c5 {[%clk 0:02:58.9]} 2. Nc3 {[%clk 0:03:00.4]}
2... e6 {[%clk 0:02:56.3]} 3. Nf3 {[%clk 0:02:58.6]} 3... d5 {[%clk 0:02:54.8]}
4. d4 {[%clk 0:02:57.7]} 4... dxe4 {[%clk 0:02:52]} 5. Nxe4 {[%clk 0:02:53.3]}
5... cxd4 {[%clk 0:02:50.4]} 6. Nxd4 {[%clk 0:02:51.9]} 6... Nf6 {[%clk
0:02:47.9]} 7. Nxf6+ {[%clk 0:02:31.6]} 7... Qxf6 {[%clk 0:02:45.5]} 8. Nb5
{[%clk 0:02:13.1]} 8... Na6 {[%clk 0:02:36.3]} 9. Nd6+ {[%clk 0:02:03]} 9...
Bxd6 {[%clk 0:02:35.9]} 10. Qxd6 {[%clk 0:02:03.9]} 10... Qe7 {[%clk 0:02:35.1]}
11. Qg3 {[%clk 0:01:35.5]} 11... O-O {[%clk 0:02:31.9]} 12. Bd3 {[%clk
0:01:30.6]} 12... f5 {[%clk 0:02:16.3]} 13. O-O {[%clk 0:01:08.2]} 13... Nc5
{[%clk 0:02:12.5]} 14. Bg5 {[%clk 0:00:59.8]} 14... Qf7 {[%clk 0:02:03.7]} 15.
Rfe1 {[%clk 0:00:49.4]} 15... Nxd3 {[%clk 0:02:01.5]} 16. Qxd3 {[%clk
0:00:50.3]} 16... h6 {[%clk 0:02:00.3]} 17. Bf4 {[%clk 0:00:49.6]} 17... g5
{[%clk 0:01:59.2]} 18. Be5 {[%clk 0:00:49.1]} 18... Bd7 {[%clk 0:01:54.7]} 19.
Bc3 {[%clk 0:00:41.1]} 19... Bc6 {[%clk 0:01:44.7]} 20. Qd4 {[%clk 0:00:40.6]}
20... Kh7 {[%clk 0:01:42.9]} 21. Qe5 {[%clk 0:00:33.5]} 21... Rfe8 {[%clk
0:01:30.1]} 22. Rad1 {[%clk 0:00:25.4]} 22... Bd5 {[%clk 0:01:27.3]} 23. Bd4
{[%clk 0:00:20.8]} 23... Rac8 {[%clk 0:01:20.6]} 24. Re2 {[%clk 0:00:16.2]}
24... a5 {[%clk 0:01:17.6]} 25. b3 {[%clk 0:00:15.8]} 25... b5 {[%clk
0:01:15.1]} 26. c3 {[%clk 0:00:12.9]} 26... a4 {[%clk 0:01:12.7]} 27. bxa4
{[%clk 0:00:09.3]} 27... bxa4 {[%clk 0:01:12.1]} 28. a3 {[%clk 0:00:08.7]} 28...
Qe7 {[%clk 0:01:06.5]} 29. Rde1 {[%clk 0:00:06.9]} 29... Qf7 {[%clk 0:01:04.7]}
30. Qd6 {[%clk 0:00:06.4]} 30... Rc6 {[%clk 0:01:00.9]} 31. Qb4 {[%clk
0:00:05.7]} 31... Rc4 {[%clk 0:00:59.6]} 32. Qd6 {[%clk 0:00:04.5]} 32... Rec8
{[%clk 0:00:53.3]} 33. h3 {[%clk 0:00:03.7]} 33... R8c6 {[%clk 0:00:49]} 34. Qe5
{[%clk 0:00:03.9]} 34... Qf8 {[%clk 0:00:45.1]} 35. Rb2 {[%clk 0:00:04.2]} 35...
Rc7 {[%clk 0:00:42.5]} 36. Rb6 {[%clk 0:00:03.4]} 36... R4c6 {[%clk 0:00:39.9]}
37. Reb1 {[%clk 0:00:03.6]} 37... Rxb6 {[%clk 0:00:38.8]} 38. Rxb6 {[%clk
0:00:04.5]} 38... Rb7 {[%clk 0:00:36.9]} 39. Rxb7+ {[%clk 0:00:02.8]} 39... Bxb7
{[%clk 0:00:37.8]} 40. Qc7+ {[%clk 0:00:03.3]} 40... Kg6 {[%clk 0:00:35.2]} 41.
Qxb7 {[%clk 0:00:03.6]} 41... Qxa3 {[%clk 0:00:35]} 42. Qg7+ {[%clk 0:00:02.6]}
42... Kh5 {[%clk 0:00:34]} 43. Qf7+ {[%clk 0:00:02.7]} 43... Kh4 {[%clk
0:00:33.8]} 44. g3+ {[%clk 0:00:03]} 44... Kxh3 {[%clk 0:00:33.8]} 45. Qh5#
{[%clk 0:00:03.6]} 1-0

[Event "*** SCC Grand Prix: Titled Tuesday Blitz"]
[Site "Chess.com"]
[Date "2020.07.14"]
[Round "7"]
[White "JoakimVonAnd"]
[Black "EfM13"]
[Result "1-0"]
[WhiteElo "2451"]
[BlackElo "2251"]
[TimeControl "180+1"]
[EndTime "11:19:56 PDT"]
[Termination "JoakimVonAnd won on time"]

1. d4 {[%clk 0:03:00.9]} 1... d6 {[%clk 0:02:55.2]} 2. Nf3 {[%clk 0:02:59.7]}
2... Nf6 {[%clk 0:02:51.2]} 3. Bf4 {[%clk 0:02:58.6]} 3... g6 {[%clk 0:02:48.9]}
4. e3 {[%clk 0:02:58.5]} 4... Bg7 {[%clk 0:02:48]} 5. c4 {[%clk 0:02:58.1]} 5...
O-O {[%clk 0:02:47.5]} 6. Nc3 {[%clk 0:02:58.1]} 6... b6 {[%clk 0:02:47.3]} 7.
h3 {[%clk 0:02:58.3]} 7... Bb7 {[%clk 0:02:47.2]} 8. Be2 {[%clk 0:02:58.8]} 8...
Nbd7 {[%clk 0:02:45]} 9. O-O {[%clk 0:02:58.5]} 9... Ne4 {[%clk 0:02:40.5]} 10.
Nxe4 {[%clk 0:02:50.1]} 10... Bxe4 {[%clk 0:02:39.8]} 11. Nd2 {[%clk 0:02:51]}
11... Bb7 {[%clk 0:02:38.5]} 12. Bf3 {[%clk 0:02:51.9]} 12... Qc8 {[%clk
0:02:36.3]} 13. Rc1 {[%clk 0:02:48.5]} 13... e5 {[%clk 0:02:35.2]} 14. dxe5
{[%clk 0:02:48.2]} 14... dxe5 {[%clk 0:02:34.8]} 15. Bh2 {[%clk 0:02:45.6]}
15... Nc5 {[%clk 0:02:34.6]} 16. Bxb7 {[%clk 0:02:36.3]} 16... Qxb7 {[%clk
0:02:31.6]} 17. Qc2 {[%clk 0:02:33.3]} 17... Rad8 {[%clk 0:02:28.5]} 18. Rcd1
{[%clk 0:02:32.7]} 18... a5 {[%clk 0:02:22.1]} 19. Bg3 {[%clk 0:02:02.4]} 19...
e4 {[%clk 0:01:10.4]} 20. a3 {[%clk 0:01:45.3]} 20... a4 {[%clk 0:01:05]} 21.
Nb1 {[%clk 0:01:45]} 21... Nd3 {[%clk 0:00:50]} 22. Nc3 {[%clk 0:01:44.1]} 22...
Ra8 {[%clk 0:00:37.2]} 23. Rd2 {[%clk 0:01:38.2]} 23... Qc6 {[%clk 0:00:34.2]}
24. Nd5 {[%clk 0:01:28.8]} 24... Kh8 {[%clk 0:00:22]} 25. Nxc7 {[%clk
0:01:21.1]} 25... Rac8 {[%clk 0:00:20.5]} 26. Nb5 {[%clk 0:01:19.8]} 26... Qxc4
{[%clk 0:00:19.5]} 27. Nc3 {[%clk 0:01:15]} 27... Nxb2 {[%clk 0:00:12.2]} 28.
Qxb2 {[%clk 0:01:02.4]} 28... Qxc3 {[%clk 0:00:11.9]} 29. Qxc3 {[%clk
0:00:57.8]} 29... Rxc3 {[%clk 0:00:11.5]} 30. Rb1 {[%clk 0:00:54.8]} 30... Rfc8
{[%clk 0:00:09.6]} 31. Rxb6 {[%clk 0:00:53.7]} 31... Rxa3 {[%clk 0:00:09.4]} 32.
Rb7 {[%clk 0:00:50.9]} 32... Ra1+ {[%clk 0:00:09.2]} 33. Kh2 {[%clk 0:00:51.2]}
33... Kg8 {[%clk 0:00:07.7]} 34. Rdd7 {[%clk 0:00:50.2]} 34... a3 {[%clk
0:00:05.3]} 35. Rxf7 {[%clk 0:00:48.8]} 35... Bc3 {[%clk 0:00:04]} 36. Rxh7
{[%clk 0:00:41.5]} 36... Ra8 {[%clk 0:00:02.5]} 37. Rhc7 {[%clk 0:00:40.5]}
37... a2 {[%clk 0:00:01.9]} 38. Ra7 {[%clk 0:00:26.7]} 38... Rh1+ {[%clk
0:00:01.7]} 39. Kxh1 {[%clk 0:00:26]} 1-0

[Event "*** SCC Grand Prix: Titled Tuesday Blitz"]
[Site "Chess.com"]
[Date "2020.07.14"]
[Round "7"]
[White "szachuspl"]
[Black "tdf98pantani"]
[Result "0-1"]
[WhiteElo "2516"]
[BlackElo "2683"]
[TimeControl "180+1"]
[EndTime "11:19:57 PDT"]
[Termination "tdf98pantani won on time"]

1. d4 {[%clk 0:03:00.9]} 1... d5 {[%clk 0:02:57.4]} 2. c4 {[%clk 0:03:00.8]}
2... e6 {[%clk 0:02:57.7]} 3. Nf3 {[%clk 0:03:01]} 3... Nf6 {[%clk 0:02:57.9]}
4. Nc3 {[%clk 0:03:01.2]} 4... c6 {[%clk 0:02:58.2]} 5. Bg5 {[%clk 0:03:00.1]}
5... Nbd7 {[%clk 0:02:52.6]} 6. e3 {[%clk 0:02:59]} 6... h6 {[%clk 0:02:52.1]}
7. Bh4 {[%clk 0:02:58.3]} 7... Be7 {[%clk 0:02:52.4]} 8. Bd3 {[%clk 0:02:57.5]}
8... O-O {[%clk 0:02:52.6]} 9. O-O {[%clk 0:02:57.4]} 9... b6 {[%clk 0:02:51.4]}
10. Rc1 {[%clk 0:02:56.2]} 10... Bb7 {[%clk 0:02:51.6]} 11. cxd5 {[%clk
0:02:55.9]} 11... cxd5 {[%clk 0:02:50.2]} 12. h3 {[%clk 0:02:36.5]} 12... a6
{[%clk 0:02:49.8]} 13. Bg3 {[%clk 0:02:36.1]} 13... b5 {[%clk 0:02:48.4]} 14.
Qe2 {[%clk 0:02:25.6]} 14... Rc8 {[%clk 0:02:41.1]} 15. Rc2 {[%clk 0:02:18.9]}
15... Nb6 {[%clk 0:02:40.9]} 16. Rfc1 {[%clk 0:02:16.3]} 16... Nc4 {[%clk
0:02:40.3]} 17. Ne5 {[%clk 0:02:10.5]} 17... Qa5 {[%clk 0:02:27.2]} 18. Qe1
{[%clk 0:01:29.4]} 18... Bb4 {[%clk 0:02:21.8]} 19. a3 {[%clk 0:01:25.9]} 19...
Bxc3 {[%clk 0:01:58]} 20. bxc3 {[%clk 0:01:22]} 20... Qxa3 {[%clk 0:01:51.4]}
21. Ra1 {[%clk 0:01:13.5]} 21... Qe7 {[%clk 0:01:48.3]} 22. f3 {[%clk
0:01:09.7]} 22... Nxe5 {[%clk 0:01:45.5]} 23. Bxe5 {[%clk 0:01:08.2]} 23... Nd7
{[%clk 0:01:45.8]} 24. Bg3 {[%clk 0:01:07.9]} 24... e5 {[%clk 0:01:44]} 25. Bf5
{[%clk 0:01:06.4]} 25... e4 {[%clk 0:01:28.8]} 26. fxe4 {[%clk 0:00:59.7]} 26...
dxe4 {[%clk 0:01:29]} 27. Bh4 {[%clk 0:00:44.3]} 27... g5 {[%clk 0:01:26.9]} 28.
Bg3 {[%clk 0:00:44.1]} 28... Rc6 {[%clk 0:01:22]} 29. Rf2 {[%clk 0:00:37]} 29...
Nb6 {[%clk 0:01:16.7]} 30. Qe2 {[%clk 0:00:31.7]} 30... Bc8 {[%clk 0:01:12.9]}
31. Raf1 {[%clk 0:00:27]} 31... Bxf5 {[%clk 0:01:11.1]} 32. Rxf5 {[%clk
0:00:26.8]} 32... f6 {[%clk 0:01:09.4]} 33. Qh5 {[%clk 0:00:26.1]} 33... Qg7
{[%clk 0:01:07]} 34. h4 {[%clk 0:00:24.8]} 34... Nd7 {[%clk 0:01:01]} 35. hxg5
{[%clk 0:00:24.4]} 35... hxg5 {[%clk 0:00:58]} 36. d5 {[%clk 0:00:15.6]} 36...
Rxc3 {[%clk 0:00:57.3]} 37. d6 {[%clk 0:00:14.7]} 37... Rxe3 {[%clk 0:00:56.7]}
38. Qd1 {[%clk 0:00:13.1]} 38... Rd3 {[%clk 0:00:56.5]} 39. Qa1 {[%clk
0:00:10.7]} 39... Rxg3 {[%clk 0:00:55.1]} 40. Qxa6 {[%clk 0:00:10]} 40... Qf7
{[%clk 0:00:46.5]} 41. Qxb5 {[%clk 0:00:09.8]} 41... Qe6 {[%clk 0:00:47.1]} 42.
Qb2 {[%clk 0:00:06.5]} 42... e3 {[%clk 0:00:45.6]} 43. Qe2 {[%clk 0:00:06.2]}
43... Kg7 {[%clk 0:00:37.6]} 44. Ra5 {[%clk 0:00:01.8]} 44... Qxd6 {[%clk
0:00:36.4]} 45. Ra7 {[%clk 0:00:01.9]} 45... Rf7 {[%clk 0:00:35.8]} 0-1